fUST/lending_fUST_20250816
["ID","MTS","AMOUNT","RATE_DAILY","PERIOD"]
[379619373,1755346247244,-480.0,0.00022191,3]
[379619374,1755346247253,-480.0,0.00022191,3]
[379619375,1755346247262,-480.0,0.00022191,3]
[379619376,1755346247271,-480.0,0.00022191,3]
[379619377,1755346247279,-4709.16,0.00022191,3]
[379619378,1755346247289,-480.0,0.00022191,3]
[379619379,1755346247298,-480.0,0.00022191,3]
[379619380,1755346247307,-480.0,0.00022191,3]
[379619381,1755346247317,-635.77,0.00022191,3]
[379619382,1755346247326,-732.88,0.00022191,3]
[379619383,1755346247335,-480.0,0.00022191,3]
[379619384,1755346247343,-480.0,0.00022191,3]
[379619385,1755346247353,-215.68093138,0.00022191,7]
[379619386,1755346247363,-1114.15,0.00022191,3]
[379619387,1755346247372,-480.0,0.00022191,3]
[379619388,1755346247381,-2147.63,0.00022191,3]
[379619389,1755346247393,-480.0,0.00022191,3]
[379619390,1755346247403,-151.0,0.00022191,7]
[379619391,1755346247412,-480.0,0.00022191,3]
[379619392,1755346247421,-151.0,0.00022191,7]
[379619393,1755346247431,-480.0,0.00022191,3]
[379619394,1755346247440,-480.0,0.00022191,3]
[379619395,1755346247449,-480.0,0.00022191,3]
[379619396,1755346247458,-480.0,0.00022191,3]
[379619397,1755346247467,-480.0,0.00022191,3]
[379619398,1755346247476,-2733.18,0.00022191,3]
[379619399,1755346247485,-563.0,0.00022191,3]
[379619400,1755346247494,-480.0,0.00022191,3]
[379619401,1755346247503,-480.0,0.00022191,3]
[379619402,1755346247513,-480.0,0.00022191,3]
[379619403,1755346247522,-695.96,0.00022191,3]
[379619404,1755346247531,-848.2,0.00022191,3]
[379619405,1755346247541,-252.74001717,0.00022191,3]
[379619406,1755346247550,-480.0,0.00022191,3]
[379619407,1755346247560,-446.67112877,0.00022191,3]
[379619408,1755346247569,-480.0,0.00022191,3]
[379619409,1755346247579,-1429.13,0.00022191,3]
[379619410,1755346247588,-480.0,0.00022191,3]
[379619411,1755346247597,-1024.7,0.00022191,3]
[379619412,1755346247608,-480.0,0.00022191,3]
[379619413,1755346247619,-439.17958988,0.00022191,3]
[379619414,1755346247629,-480.0,0.00022191,3]
[379619415,1755346247638,-480.0,0.00022191,3]
[379619416,1755346247647,-1242.65,0.00022191,3]
[379619417,1755346247796,-151.635013,0.00022191,7]
[379619418,1755346247806,-480.0,0.00022191,3]
[379619419,1755346247816,-550.83,0.00022191,3]
[379619420,1755346247825,-280.0,0.00022191,3]
[379619421,1755346247835,-525.28,0.00022191,3]
[379619422,1755346247844,-480.0,0.00022191,3]
[379619423,1755346247853,-480.0,0.00022191,3]
[379619424,1755346247862,-782.33,0.00022191,3]
[379619425,1755346247872,-480.0,0.00022191,3]
[379619426,1755346247881,-196.097691,0.00022191,7]
[379619427,1755346247890,-480.0,0.00022191,3]
[379619428,1755346247900,-462.1417622,0.00022191,7]
[379619429,1755346247909,-480.0,0.00022191,3]
[379619430,1755346247918,-196.097691,0.00022191,7]
[379619431,1755346247928,-480.0,0.00022191,3]
[379619432,1755346247937,-422.90821941,0.00022191,3]
[379619433,1755346247951,-522.92178059,0.00022191,3]
[379619434,1755346247960,-480.0,0.00022191,3]
[379619435,1755346247970,-480.0,0.00022191,3]
[379619436,1755346247980,-1882.39,0.00022191,3]
[379619437,1755346247990,-151.0,0.00022191,7]
[379619438,1755346247999,-151.0,0.00022191,7]
[379619439,1755346248009,-480.0,0.00022191,3]
[379619440,1755346248022,-480.0,0.00022191,3]
[379619441,1755346248031,-480.0,0.00022191,3]
[379619442,1755346248041,-480.0,0.00022191,3]
[379619443,1755346248050,-6295.27,0.00022191,3]
[379619444,1755346248059,-247.19216492,0.00022191,3]
[379619445,1755346248269,-99.26434579,0.00022191,3]
[379619446,1755346248279,-85.68526498,0.00022191,3]
[379619448,1755346248377,-229.91006654,0.00022191,3]
[379619449,1755346248386,-391.4490422,0.00022191,3]
[379619450,1755346248616,-480.0,0.00021917,3]
[379619451,1755346248626,-112.73,0.00022191,3]
[379619452,1755346248725,-480.0,0.00021917,3]
[379619453,1755346248735,-191.5209578,0.00022191,3]
[379619454,1755346248745,-151.0,0.00022191,7]
[379619455,1755346248755,-1030.58,0.00022191,3]
[379619456,1755346248764,-480.0,0.00022191,3]
[379619457,1755346248774,-480.0,0.00022191,3]
[379619458,1755346248783,-480.0,0.00022191,3]
[379619459,1755346248793,-151.0,0.000222,7]
[379619460,1755346248802,-107.14540067,0.000222,8]
[379619461,1755346248813,-43.85459933,0.000222,8]
[379619462,1755346248823,-168.0,0.00022216,2]
[379619463,1755346248832,-153.32251725,0.00022247,2]
[379619464,1755346248842,-336.8895267,0.00022273,2]
[379619486,1755346338056,2362.42544307,0.000199,2]
[379619491,1755346384889,-222.78734278,0.00020408,2]
[379619492,1755346387297,-301.86913479,0.00020408,2]
[379619495,1755346414271,-351.27439793,0.00020408,2]
[379619496,1755346417683,-223.49865614,0.00020408,2]
[379619498,1755346419741,-165.05500853,0.00020408,2]
[379619499,1755346423312,-274.36969029,0.00020408,2]
[379619500,1755346426969,-298.64208696,0.00020408,2]
[379619502,1755346429198,-151.11129436,0.00020408,2]
[379619503,1755346430978,-165.52241516,0.00020408,2]
[379619504,1755346432567,-161.57787733,0.00020408,2]
[379619506,1755346434696,-46.71753872,0.00020408,2]
[379619507,1755346434717,-121.51197249,0.0002079,2]
[379619508,1755346436298,-160.03041089,0.0002079,2]
[379619509,1755346436322,-113.1190649,0.0002088,10]
[379619510,1755346438571,-180.18728878,0.0002088,10]
[379619511,1755346443343,-153.24770248,0.00020486,2]
[379619512,1755346446322,-302.03697398,0.00020486,2]
[379619513,1755346450203,-44.71532354,0.00020486,2]
[379619514,1755346450227,-176.88364632,0.0002088,10]
[379619515,1755346450251,-65.92671448,0.0002088,10]
[379619516,1755346454220,-319.81271122,0.00020796,2]
[379619517,1755346456730,-223.74338969,0.00020796,2]
[379619518,1755346459899,-408.57532342,0.00020796,2]
[379619519,1755346462205,-4.45795889,0.00020796,2]
[379619520,1755346462227,-178.90833159,0.0002088,10]
[379619521,1755346464659,-93.19166841,0.0002088,10]
[379619522,1755346464682,-151.97667363,0.00020889,2]
[379619523,1755346467012,-210.43734168,0.0002088,10]
[379619524,1755346469100,-125.04265832,0.0002088,10]
[379619525,1755346469124,-148.02332637,0.00020889,2]
[379619526,1755346469147,-72.84691994,0.0002089,2]
[379619527,1755346470620,-154.08709537,0.0002089,2]
[379619529,1755346474242,-204.66660136,0.00020889,2]
[379619530,1755346474264,-3.87861049,0.00020889,2]
[379619531,1755346476974,-297.9905243,0.00020889,2]
[379619532,1755346476996,-20.85675017,0.00020889,2]
[379619533,1755346479275,-191.68571215,0.0002088,10]
[379619534,1755346481433,-87.88428785,0.0002088,10]
[379619535,1755346481458,-303.13687454,0.00020889,2]
[379619536,1755346484845,-154.90224994,0.00020889,2]
[379619537,1755346487567,-21.10412535,0.00020889,2]
[379619538,1755346487590,-276.6804775,0.00020889,2]
[379619539,1755346489246,-183.49468112,0.00020889,2]
[379619540,1755346492841,-232.98,0.0002088,10]
[379619541,1755346492867,-11.4213737,0.00020889,2]
[379619542,1755346496545,-28.40346768,0.00020889,2]
[379619543,1755346496568,-240.9678253,0.00020889,2]
[379619544,1755346498830,-161.57471418,0.00020889,2]
[379619545,1755346501303,-97.45746052,0.00020889,2]
[379619546,1755346501326,-325.16752043,0.00020889,2]
[379619547,1755346506170,-154.9706047,0.0002088,10]
[379619548,1755346509570,-39.1793953,0.0002088,10]
[379619549,1755346509593,-260.8206047,0.00020888,2]
[379619550,1755346511186,-39.1793953,0.00020888,2]
[379619551,1755346511209,-134.78748715,0.00020888,2]
[379619552,1755346515684,-161.79,0.0002088,10]
[379619553,1755346515708,-10.31771669,0.00020888,2]
[379619554,1755346517452,-360.68081369,0.00020888,2]
[379619555,1755346532151,2205.06107251,0.000199,2]
[379619557,1755346723439,2118.62379547,0.000199,2]
[379619559,1755346883342,191.4622756,0.00019882,2]
[379619560,1755346889333,180.389901,0.00019882,2]
[379619561,1755346895939,2048.00300222,0.000199,2]
[379619577,1755347074293,1979.65922359,0.000199,2]
[379619581,1755347085290,3504.88536079,0.000277,60]
[379619587,1755347104912,-385.38993346,0.00020408,2]
[379619588,1755347109563,16679.72211309,0.0002,2]
[379619589,1755347109588,30000.0,0.0002,2]
[379619590,1755347109612,30000.0,0.0002,2]
[379619591,1755347109647,30000.0,0.0002,2]
[379619592,1755347109671,30000.0,0.0002,2]
[379619593,1755347109695,30000.0,0.0002,2]
[379619594,1755347109718,30000.0,0.0002,2]
[379619595,1755347109742,30000.0,0.0002,2]
[379619596,1755347109768,30000.0,0.0002,2]
[379619597,1755347109793,18896.56788691,0.0002,2]
[379619598,1755347137131,-2415.85608141,0.00020204,2]
[379619599,1755347137902,-158.46569008,0.00020204,2]
[379619602,1755347239451,1003.5011101,0.00019879,2]
[379619603,1755347260071,1892.17751775,0.000199,2]
[379619604,1755347269987,166.665653,0.00019867,2]
[379619605,1755347314127,5000.0,0.0002,2]
[379619606,1755347315277,1968.80111346,0.0002,2]
[379619607,1755347318910,2197.92910747,0.0002771,120]
[379619608,1755347330374,1072.28671878,0.0002,2]
[379619609,1755347330396,3927.71328122,0.0002,2]
[379619610,1755347346629,5000.0,0.0002,2]
[379619641,1755347362027,5000.0,0.0002,2]
[379619645,1755347378215,5000.0,0.0002,2]
[379619646,1755347380122,255.449595,0.00013699,2]
[379619649,1755347394859,5000.0,0.0002,2]
[379619667,1755347410933,5000.0,0.0002,2]
[379619668,1755347427407,816.83712378,0.0002,2]
[379619669,1755347427429,4183.16287622,0.0002,2]
[379619670,1755347430081,-210.35256253,0.00020112,2]
[379619671,1755347430105,-83.28252552,0.00020187,2]
[379619684,1755347432166,-172.16706948,0.00020187,2]
[379619686,1755347432176,-168.96013091,0.00020198,2]
[379619688,1755347432226,-52.74984599,0.00020198,2]
[379619689,1755347432236,-700.0,0.00020212,2]
[379619690,1755347432245,-300.0,0.00020795,2]
[379619691,1755347432256,-868.0,0.00020795,2]
[379619692,1755347432265,-765.27150656,0.00020796,2]
[379619693,1755347432275,-1682.9211854,0.00020796,2]
[379619699,1755347438288,-1867.81503242,0.00020796,2]
[379619700,1755347438298,-1200.0,0.00020871,2]
[379619701,1755347438308,-3730.33053375,0.00020873,2]
[379619703,1755347438318,-500.0,0.00020873,2]
[379619704,1755347438327,-500.80678866,0.00020873,2]
[379619706,1755347438338,-500.0,0.00020873,2]
[379619707,1755347438347,-500.0,0.00020873,2]
[379619708,1755347438357,-500.0,0.00020873,2]
[379619709,1755347438366,-500.0,0.00020873,2]
[379619711,1755347438377,-502.31631118,0.00020873,2]
[379619712,1755347438390,-500.0,0.00020873,2]
[379619713,1755347438403,-500.0,0.00020873,2]
[379619714,1755347438413,-500.0,0.00020873,2]
[379619715,1755347438422,-500.0,0.00020873,2]
[379619716,1755347438432,-502.15305957,0.00020873,2]
[379619717,1755347438441,-500.0,0.00020873,2]
[379619718,1755347438450,-500.0,0.00020873,2]
[379619719,1755347438460,-500.0,0.00020873,2]
[379619720,1755347438469,-181.38083272,0.00020873,2]
[379619721,1755347438480,-501.06216224,0.00020873,2]
[379619722,1755347438490,-500.0,0.00020873,2]
[379619723,1755347438499,-500.0,0.00020873,2]
[379619724,1755347438508,-500.0,0.00020873,2]
[379619725,1755347438518,-500.0,0.00020873,2]
[379619726,1755347438527,-544.97971579,0.00020873,2]
[379619727,1755347438537,-500.0,0.00020873,2]
[379619728,1755347438547,-259.04874851,0.00020873,2]
[379619729,1755347438556,-500.5033971,0.00020873,2]
[379619730,1755347438567,-500.96409506,0.00020873,2]
[379619731,1755347438576,-500.0,0.00020873,2]
[379619732,1755347438586,-500.0,0.00020873,2]
[379619733,1755347438595,-500.251964,0.00020873,2]
[379619734,1755347438604,-500.0,0.00020873,2]
[379619735,1755347438615,-808.96,0.0002088,10]
[379619736,1755347438625,-174.83247957,0.00020889,2]
[379619737,1755347438635,-584.49664421,0.00020889,2]
[379619738,1755347438646,-500.0,0.00020889,2]
[379619739,1755347438656,-548.12830178,0.00020889,2]
[379619740,1755347438666,-500.0,0.00020889,2]
[379619741,1755347438676,-434.72735312,0.00020889,2]
[379619742,1755347438686,-249.76220954,0.00020889,2]
[379619743,1755347438696,-500.0,0.00020889,2]
[379619744,1755347438706,-319.29601775,0.00020889,2]
[379619745,1755347438715,-433.73247158,0.00020889,2]
[379619746,1755347438725,-297.78460285,0.00020889,2]
[379619747,1755347438736,-204.59183319,0.00020889,2]
[379619748,1755347438746,-500.0,0.00020889,2]
[379619749,1755347438756,-184.13318061,0.00020889,2]
[379619750,1755347438765,-316.50531888,0.00020889,2]
[379619751,1755347438775,-475.41897682,0.00020889,2]
[379619752,1755347438785,-277.38518729,0.00020889,2]
[379619753,1755347438795,-369773.06598469,0.0002089,2]
[379619754,1755347438806,-516.92,0.00020896,2]
[379619755,1755347438817,-151.0,0.000209,4]
[379619756,1755347438827,-580.575816,0.000209,2]
[379619757,1755347438837,-580.575816,0.000209,2]
[379619758,1755347438847,-500.0,0.00020916,2]
[379619759,1755347438856,-151.83,0.00020989,2]
[379619760,1755347438866,-100000.0,0.0002099,2]
[379619761,1755347438876,-151.0,0.00021,3]
[379619762,1755347438885,-500.0,0.00021018,2]
[379619764,1755347438897,-300.0,0.00021018,2]
[379619766,1755347438908,-151.0,0.00021018,2]
[379619768,1755347438919,-300.0,0.00021018,2]
[379619770,1755347438929,-611.58707087,0.00021018,2]
[379619771,1755347438939,-300.0,0.00021018,2]
[379619772,1755347438949,-17842.522448,0.00021018,2]
[379619773,1755347438959,-859.29230477,0.00021023,2]
[379619774,1755347438969,-462.1417622,0.0002107,2]
[379619775,1755347438980,-765.27150655,0.0002112,2]
[379619776,1755347438990,-506.25103804,0.0002119,2]
[379619777,1755347439000,-151.0,0.000212,4]
[379619778,1755347439010,-700.0,0.00021308,2]
[379619779,1755347439020,-151.0,0.000214,4]
[379619780,1755347439030,-1000.0,0.00021421,2]
[379619781,1755347439040,-1000.0,0.00021421,2]
[379619782,1755347439050,-324.25194478,0.00021421,2]
[379619783,1755347439060,-1000.0,0.00021421,2]
[379619784,1755347439070,-1000.0,0.00021421,2]
[379619785,1755347439080,-1000.0,0.00021421,2]
[379619786,1755347439090,-1000.0,0.00021421,2]
[379619787,1755347439100,-1000.0,0.00021421,2]
[379619788,1755347439110,-751.41654065,0.00021421,2]
[379619789,1755347439120,-765.27150655,0.00021444,2]
[379619790,1755347439129,-151.0,0.000215,3]
[379619791,1755347439140,-151.0,0.000217,4]
[379619792,1755347439155,-151.0,0.000217,4]
[379619793,1755347439166,-765.27150655,0.00021767,2]
[379619794,1755347439176,-3550.73621778,0.00021769,2]
[379619795,1755347439187,-151.0,0.000218,3]
[379619796,1755347439197,-151.0,0.000218,3]
[379619797,1755347439207,-747.47266878,0.00021886,2]
[379619798,1755347439217,-151.0,0.000219,4]
[379619799,1755347439227,-246.63855974,0.00021917,3]
[379619800,1755347439237,-340.0,0.00021917,3]
[379619801,1755347439247,-240.60915166,0.00021917,3]
[379619802,1755347439257,-480.0,0.00021917,3]
[379619803,1755347439268,-340.0,0.00021917,3]
[379619804,1755347439279,-480.0,0.00021917,3]
[379619805,1755347439288,-480.0,0.00021917,3]
[379619806,1755347439298,-480.0,0.00021917,3]
[379619807,1755347439308,-205.01763489,0.00021917,3]
[379619808,1755347439318,-460.0,0.00021917,3]
[379619809,1755347439327,-480.0,0.00021917,3]
[379619810,1755347439337,-460.0,0.00021917,3]
[379619811,1755347439347,-460.0,0.00021917,3]
[379619812,1755347439357,-473.41514246,0.00021917,3]
[379619813,1755347439368,-460.0,0.00021917,3]
[379619814,1755347439379,-480.0,0.00021917,3]
[379619815,1755347439392,-480.0,0.00021917,3]
[379619816,1755347439409,-480.0,0.00021917,3]
[379619817,1755347439420,-480.0,0.00021917,3]
[379619818,1755347439430,-480.0,0.00021917,3]
[379619819,1755347439440,-480.0,0.00021917,3]
[379619820,1755347439450,-347.91293757,0.00021917,3]
[379619821,1755347439460,-480.0,0.00021917,3]
[379619822,1755347439471,-480.0,0.00021917,3]
[379619823,1755347439481,-480.0,0.00021917,3]
[379619824,1755347439491,-480.0,0.00021917,3]
[379619825,1755347439501,-480.0,0.00021917,3]
[379619826,1755347439511,-480.0,0.00021917,3]
[379619827,1755347439521,-480.0,0.00021917,3]
[379619828,1755347439531,-480.0,0.00021917,3]
[379619829,1755347439540,-480.0,0.00021917,3]
[379619830,1755347439550,-480.0,0.00021917,3]
[379619831,1755347439560,-480.0,0.00021917,3]
[379619832,1755347439569,-480.0,0.00021917,3]
[379619833,1755347439581,-480.0,0.00021917,3]
[379619834,1755347439591,-480.0,0.00021917,3]
[379619835,1755347439600,-480.0,0.00021917,3]
[379619836,1755347439610,-480.0,0.00021917,3]
[379619837,1755347439620,-480.0,0.00021917,3]
[379619838,1755347439630,-480.0,0.00021917,3]
[379619839,1755347439640,-480.0,0.00021917,3]
[379619840,1755347439655,-480.0,0.00021917,3]
[379619841,1755347439666,-480.0,0.00021917,3]
[379619842,1755347439676,-480.0,0.00021917,3]
[379619843,1755347439685,-480.0,0.00021917,3]
[379619844,1755347439695,-480.0,0.00021917,3]
[379619845,1755347439705,-420.0,0.00021917,3]
[379619846,1755347439715,-2517.39,0.00021917,3]
[379619847,1755347439725,-480.0,0.00021917,3]
[379619848,1755347439734,-480.0,0.00021917,3]
[379619850,1755347439743,-480.0,0.00021917,3]
[379619852,1755347439753,-480.0,0.00021917,3]
[379619853,1755347439764,-480.0,0.00021917,3]
[379619854,1755347439774,-503.55841545,0.00021917,3]
[379619856,1755347439783,-488.96,0.00021917,3]
[379619857,1755347439793,-480.0,0.00021917,3]
[379619858,1755347439803,-480.0,0.00021917,3]
[379619859,1755347439813,-480.0,0.00021917,3]
[379619860,1755347439824,-480.0,0.00021917,3]
[379619861,1755347439833,-480.0,0.00021917,3]
[379619863,1755347439843,-480.0,0.00021917,3]
[379619864,1755347439853,-603.35564049,0.00021917,3]
[379619865,1755347439864,-480.0,0.00021917,3]
[379619867,1755347439874,-480.0,0.00021917,3]
[379619869,1755347439884,-480.0,0.00021917,3]
[379619870,1755347439894,-480.0,0.00021917,3]
[379619871,1755347439909,-340.0,0.00021917,3]
[379619873,1755347439919,-480.0,0.00021917,3]
[379619874,1755347439928,-480.0,0.00021917,3]
[379619875,1755347439938,-480.0,0.00021917,3]
[379619876,1755347440118,-480.0,0.00021917,3]
[379619877,1755347440128,-480.0,0.00021917,3]
[379619878,1755347440139,-386.6819424,0.00021917,3]
[379619879,1755347440153,-496.93350049,0.00021917,3]
[379619880,1755347440164,-480.0,0.00021917,3]
[379619881,1755347440175,-480.0,0.00021917,3]
[379619882,1755347440185,-480.0,0.00021917,3]
[379619883,1755347440196,-480.0,0.00021917,3]
[379619884,1755347440207,-158.12851034,0.00021917,3]
[379619885,1755347440217,-460.0,0.00021917,3]
[379619886,1755347440227,-480.0,0.00021917,3]
[379619887,1755347440236,-480.0,0.00021917,3]
[379619888,1755347440246,-480.0,0.00021917,3]
[379619889,1755347440256,-480.0,0.00021917,3]
[379619890,1755347440266,-400.0,0.00021917,3]
[379619891,1755347440276,-480.0,0.00021917,3]
[379619892,1755347440286,-402.27606829,0.00021917,3]
[379619893,1755347440296,-791.44,0.00021917,3]
[379619894,1755347440306,-480.0,0.00021917,3]
[379619895,1755347440315,-480.0,0.00021917,3]
[379619896,1755347440326,-480.0,0.00021917,3]
[379619897,1755347440336,-480.0,0.00021917,3]
[379619898,1755347440346,-532.14924528,0.00021917,3]
[379619899,1755347440356,-480.0,0.00021917,3]
[379619900,1755347440366,-480.0,0.00021917,3]
[379619901,1755347440375,-480.0,0.00021917,3]
[379619902,1755347440385,-480.0,0.00021917,3]
[379619903,1755347440395,-480.0,0.00021917,3]
[379619904,1755347440409,-480.0,0.00021917,3]
[379619905,1755347440419,-480.0,0.00021917,3]
[379619906,1755347440428,-480.0,0.00021917,3]
[379619907,1755347440438,-480.0,0.00021917,3]
[379619908,1755347440448,-480.0,0.00021917,3]
[379619909,1755347440458,-480.0,0.00021917,3]
[379619910,1755347440467,-480.0,0.00021917,3]
[379619911,1755347440478,-297.6066521,0.00021917,3]
[379619912,1755347440487,-480.0,0.00021917,3]
[379619913,1755347440497,-420.0,0.00021917,3]
[379619914,1755347440507,-534.87,0.00021917,3]
[379619915,1755347440516,-1689.3,0.00021917,3]
[379619916,1755347440526,-400.0,0.00021917,3]
[379619917,1755347440536,-480.0,0.00021917,3]
[379619919,1755347440545,-813.53,0.00021917,3]
[379619920,1755347440554,-480.0,0.00021917,3]
[379619922,1755347440563,-480.0,0.00021917,3]
[379619924,1755347440572,-956.52,0.00021917,3]
[379619925,1755347440582,-480.0,0.00021917,3]
[379619927,1755347440591,-480.0,0.00021917,3]
[379619928,1755347440600,-480.0,0.00021917,3]
[379619929,1755347440610,-480.0,0.00021917,3]
[379619930,1755347440620,-480.0,0.00021917,3]
[379619931,1755347440630,-480.0,0.00021917,3]
[379619933,1755347440640,-440.0,0.00021917,3]
[379619934,1755347440653,-494.66,0.00021917,3]
[379619935,1755347440663,-480.0,0.00021917,3]
[379619936,1755347440672,-480.0,0.00021917,3]
[379619937,1755347440682,-480.0,0.00021917,3]
[379619938,1755347440694,-480.0,0.00021917,3]
[379619939,1755347440704,-748.94,0.00021917,3]
[379619940,1755347440714,-480.0,0.00021917,3]
[379619941,1755347440724,-467.61506618,0.00021917,3]
[379619942,1755347440734,-480.0,0.00021917,3]
[379619943,1755347440744,-480.0,0.00021917,3]
[379619944,1755347440754,-480.0,0.00021917,3]
[379619945,1755347440763,-480.0,0.00021917,3]
[379619946,1755347440774,-460.0,0.00021917,3]
[379619947,1755347440784,-480.0,0.00021917,3]
[379619948,1755347440794,-480.0,0.00021917,3]
[379619949,1755347440803,-480.0,0.00021917,3]
[379619950,1755347440813,-460.0,0.00021917,3]
[379619951,1755347440823,-420.0,0.00021917,3]
[379619952,1755347440833,-480.0,0.00021917,3]
[379619953,1755347440842,-480.0,0.00021917,3]
[379619954,1755347440852,-480.0,0.00021917,3]
[379619955,1755347440861,-480.0,0.00021917,3]
[379619956,1755347440871,-337.54119493,0.00021917,3]
[379619957,1755347440881,-480.0,0.00021917,3]
[379619958,1755347440890,-480.0,0.00021917,3]
[379619959,1755347440903,-480.0,0.00021917,3]
[379619960,1755347440912,-480.0,0.00021917,3]
[379619961,1755347440922,-480.0,0.00021917,3]
[379619962,1755347440932,-604.24,0.00021917,3]
[379619963,1755347440942,-480.0,0.00021917,3]
[379619964,1755347440952,-480.0,0.00021917,3]
[379619965,1755347440963,-480.0,0.00021917,3]
[379619966,1755347440973,-480.0,0.00021917,3]
[379619967,1755347440984,-480.0,0.00021917,3]
[379619968,1755347440994,-480.0,0.00021917,3]
[379619969,1755347441004,-480.0,0.00021917,3]
[379619970,1755347441014,-480.0,0.00021917,3]
[379619971,1755347441024,-480.0,0.00021917,3]
[379619972,1755347441034,-480.0,0.00021917,3]
[379619973,1755347441044,-480.0,0.00021917,3]
[379619974,1755347441054,-480.0,0.00021917,3]
[379619975,1755347441064,-480.0,0.00021917,3]
[379619976,1755347441074,-480.0,0.00021917,3]
[379619977,1755347441084,-480.0,0.00021917,3]
[379619978,1755347441094,-197.5343251,0.00021917,3]
[379619979,1755347441103,-480.0,0.00021917,3]
[379619980,1755347441113,-480.0,0.00021917,3]
[379619981,1755347441123,-480.0,0.00021917,3]
[379619982,1755347441132,-480.0,0.00021917,3]
[379619983,1755347441142,-480.0,0.00021917,3]
[379619984,1755347441154,-480.0,0.00021917,3]
[379619985,1755347441164,-406.16066911,0.00021917,3]
[379619986,1755347441174,-7168.88,0.00021917,3]
[379619987,1755347441183,-1317.3,0.00021917,3]
[379619988,1755347441193,-480.0,0.00021917,3]
[379619989,1755347441203,-480.0,0.00021917,3]
[379619990,1755347441213,-480.0,0.00021917,3]
[379619991,1755347441223,-480.0,0.00021917,3]
[379619992,1755347441233,-750.95,0.00021917,3]
[379619993,1755347441243,-480.0,0.00021917,3]
[379619994,1755347441254,-480.0,0.00021917,3]
[379619995,1755347441263,-480.0,0.00021917,3]
[379619996,1755347441273,-480.0,0.00021917,3]
[379619997,1755347441283,-480.0,0.00021917,3]
[379619998,1755347441293,-480.0,0.00021917,3]
[379619999,1755347441303,-480.0,0.00021917,3]
[379620000,1755347441313,-480.0,0.00021917,3]
[379620001,1755347441322,-480.0,0.00021917,3]
[379620002,1755347441332,-480.0,0.00021917,3]
[379620003,1755347441342,-2880.83,0.00021917,3]
[379620004,1755347441351,-480.0,0.00021917,3]
[379620005,1755347441360,-1620.5,0.00021917,3]
[379620006,1755347441370,-554.56753057,0.00021917,3]
[379620007,1755347441381,-480.0,0.00021917,3]
[379620008,1755347441396,-480.0,0.00021917,3]
[379620009,1755347441409,-2655.77,0.00021917,3]
[379620010,1755347441418,-480.0,0.00021917,3]
[379620011,1755347441429,-480.0,0.00021917,3]
[379620012,1755347441439,-480.0,0.00021917,3]
[379620013,1755347441450,-480.0,0.00021917,3]
[379620014,1755347441461,-480.0,0.00021917,3]
[379620015,1755347441471,-1252.72,0.00021917,3]
[379620016,1755347441482,-480.0,0.00021917,3]
[379620017,1755347441492,-480.0,0.00021917,3]
[379620018,1755347441502,-480.0,0.00021917,3]
[379620019,1755347441512,-480.0,0.00021917,3]
[379620020,1755347441521,-480.0,0.00021917,3]
[379620021,1755347441532,-480.0,0.00021917,3]